Cogmind - Beta 13 @@@ ROGUE MODE // 2024.04.02 @ 00:12:12 Player: MasterLemons Result: Destroyed by S-27 Virus with Autogun Performance ------------- Evolutions (3) 1500 Regions Visited (8) 1600 Robots Destroyed (28) 140 Value Destroyed (823) 823 Prototype IDs (11) 220 Alien Tech Used (0) 0 Bonus (359) 359 TOTAL SCORE: 4642 Bonus ------- High Alert Combat Kills 19 Follower Combat Kills 40 Aligned with FarCom 300 Cogmind --------- Core Integrity 0/700 Matter 290/300 Energy 279/280 System Corruption 5% Temperature Cool (0) Movement Core (150) Ox2 Location -7/Factory Parts ------- > --- POWER (1) -------- Heavy Ion Engine > --- PROPULSION (4) --- (None) > --- UTILITY (6) ------ Hacking Suite > --- WEAPON (2) ------- (None) > --- INVENTORY (5) ---- Micro Nuclear Core Precision Shock Rifle Precision Shock Rifle Peak State ------------ > --- POWER ------------ Light Nuclear Core > --- PROPULSION ------- Carbon-fiber Leg Carbon-fiber Leg Potential Leg Potential Leg > --- UTILITY ---------- Improved Heat Sink Improved Medium Armor Plating Improved Shield Generator Improved Shield Generator Hacking Suite System Shield > --- WEAPON ----------- Precision Shock Rifle Precision Shock Rifle > --- INVENTORY -------- Heavy Ion Engine Micro Nuclear Core Precision Shock Rifle Precision Shock Rifle [Rating: 61] Favorites ----------- Power Ion Engine Engine Ion Engine Power Core Light Nuclear Core Propulsion Improved Flight Unit Leg Potential Leg Flight Unit Improved Flight Unit Utility Small Storage Unit Device Improved Shield Generator Storage Small Storage Unit Processor Improved Targeting Computer Hackware Hacking Suite Protection Medium Armor Plating Weapon Heavy Laser Energy Gun Heavy Laser Ballistic Gun Light Assault Rifle Launcher Grenade Launcher Build | -11 -10 -10 -9 -9 -9 -8 -8 -7 ------- Run | Yrd Mat Min Mat Min Exi Min Mat Fac Slots Evolved 6 | . . . 2 . . . 2 2 Power . | . . . . . . . . . Propulsion 2 | . . . 1 . . . 1 . Utility 4 | . . . 1 . . . 1 2 Weapon . | . . . . . . . . . Parts Attached 52 | 6 3 1 8 5 3 . 16 10 Power 6 | 1 . . . 3 . . 1 1 Engine 5 | 1 . . . 3 . . . 1 Core 1 | . . . . . . . 1 . Reactor . | . . . . . . . . . Propulsion 15 | 2 . . 4 1 2 . 3 3 Treads . | . . . . . . . . . Leg 11 | 2 . . 1 . 2 . 3 3 Wheel . | . . . . . . . . . Hover . | . . . . . . . . . Flight 4 | . . . 3 1 . . . . Utility 18 | 1 1 . 3 1 1 . 8 3 Device 11 | . 1 . 1 1 . . 7 1 Storage 1 | 1 . . . . . . . . Processor 2 | . . . 1 . 1 . . . Hackware 2 | . . . . . . . 1 1 Protection 2 | . . . 1 . . . . 1 Artifact . | . . . . . . . . . Weapon 13 | 2 2 1 1 . . . 4 3 Energy Gun 8 | 1 . . . . . . 4 3 Energy Cannon . | . . . . . . . . . Ballistic Gun 2 | 1 1 . . . . . . . Ballistic Cannon . | . . . . . . . . . Launcher 3 | . 1 1 1 . . . . . Special Weapon . | . . . . . . . . . Impact Weapon . | . . . . . . . . . Slashing Weapon . | . . . . . . . . . Piercing Weapon . | . . . . . . . . . Special Melee Weapon . | . . . . . . . . . Unidentified Prototypes 5 | . . . 1 1 2 . 1 . Parts Lost 17 | . . . 1 2 . . 1 13 Power 1 | . . . . . . . . 1 Propulsion 6 | . . . . 1 . . . 5 Utility 6 | . . . . . . . 1 5 Weapon 4 | . . . 1 1 . . . 2 Highest Loss Streak 10 | . . . 1 2 . . 1 10 To Critical Strikes . | . . . . . . . . . Average Slot Usage (%) 84 | . 95 100 81 75 71 66 93 74 Engine 9 | . 14 14 11 11 11 11 8 . Core 1 | . . . . . . . . 5 Leg 19 | . 28 28 12 . 10 22 26 21 Flight 8 | . . . 11 33 22 11 5 . Device 16 | . 9 14 10 16 16 11 26 15 Storage 4 | . 14 14 9 . . . . . Processor 3 | . . . 3 11 11 11 3 . Hackware 3 | . . . . . . . 4 14 Protection 1 | . . . 6 . . . . 4 Energy Gun 6 | . 7 . . . . . 16 10 Ballistic Gun 2 | . 15 11 . . . . . . Launcher 5 | . 5 16 17 4 . . . . Naked Turns . | . . . . . . . . . Heaviest Build 29 | 13 16 19 26 19 19 18 24 29 Greatest Support 90 | 20 20 20 30 15 60 60 90 75 Greatest Overweight (x) 8 | . . . 8 1 1 . . 2 Average Overweight (x) . | . . . . . . . . . Largest Inventory Capacity 8 | 8 8 8 8 5 5 5 5 5 Average Capacity 6 | 7 8 8 7 5 5 5 5 5 Most Carried 6 | 5 4 5 6 5 5 4 5 5 Average Carried 3 | 1 1 3 3 3 3 4 4 4 Final Capacity 8 | 8 8 8 5 5 5 5 5 5 Final Carried 5 | 1 3 4 3 3 4 4 5 3 Class Distribution -------------------- 71% | Mutant 14% | Skirmisher 14% | Hacker-Mutant Dominant Class ---------------- Mutant | -10/Materials Mutant | -10/Mines Mutant | -9/Materials Mutant | -9/Mines Mutant | -9/Exiles Mutant | -8/Mines Skirmisher | -8/Materials Hacker-Mutant | -7/Factory Resources | -11 -10 -10 -9 -9 -9 -8 -8 -7 ----------- Run | Yrd Mat Min Mat Min Exi Min Mat Fac Matter Collected 976 | 230 1 28 313 109 115 . 150 30 Remotely . | . . . . . . . . . Salvage Created 550 | . 43 . 116 21 . . 340 30 Parts 46 | . 5 . 11 5 . . 24 1 Haulers Intercepted . | . . . . . . . . . Recyclers Shooed 2 | . . . . . . . 2 . Parts Field Recycled 12 | . . . 12 . . . . . Retrieved Matter 70 | . . . 70 . . . . . Parts Self-Destructed . | . . . . . . . . . Prevented . | . . . . . . . . . Kills | -11 -10 -10 -9 -9 -9 -8 -8 -7 ------- Run | Yrd Mat Min Mat Min Exi Min Mat Fac Combat Hostiles Destroyed 21 | . 1 . 10 3 . . 7 . Guns 7 | . . . . . . . 7 . AOE 14 | . 1 . 10 3 . . . . Classes Destroyed 8 | . 2 . 4 . . . 2 . Worker 2 | . . . 2 . . . . . Recycler 1 | . . . . . . . 1 . Operator 3 | . . . 1 . . . 1 1 Watcher 1 | . 1 . . . . . . . Swarmer 9 | . . . 3 3 . . 3 . Grunt 7 | . 1 . 6 . . . . . Sentry 3 | . . . 1 . . . 2 . Hunter 2 | . . . . . . . 2 . Best Kill Streak 6 | . 1 . 6 3 . . 4 1 Combat Bots Only 6 | . 1 . 6 3 . . 3 . Max Kills in Single Turn 4 | . 1 . 4 3 . . 1 1 Gunslinging . | . . . . . . . . . Exploded 4 | . 1 . 4 3 . . . . Melee . | . . . . . . . . . Uniques/NPCs Destroyed . | . . . . . . . . . Combat | -11 -10 -10 -9 -9 -9 -8 -8 -7 -------- Run | Yrd Mat Min Mat Min Exi Min Mat Fac Hostile Shots Fired 483 | . 2 . 42 31 . 18 121 269 Missed 209 | . 1 . 13 12 . 9 45 129 Damage Taken 3314 | . 10 . 457 193 . 82 607 1965 Core 919 | . . . 37 67 . 28 77 710 Absorbed by Shields 314 | . . . . . . . 231 83 Core Remaining (%) 88 | 100 . 100 . . . 67 86 . Volleys Fired 62 | . 6 . 23 1 . . 26 6 Largest 2 | . 2 . 2 1 . . 2 2 Hottest 138 | . 70 . 63 33 . . 138 110 Shots Fired 112 | . 12 . 36 1 . . 52 11 Gun 72 | . 9 . . . . . 52 11 Cannon . | . . . . . . . . . Launcher 40 | . 3 . 36 1 . . . . Special . | . . . . . . . . . Kinetic 6 | . 6 . . . . . . . Thermal 55 | . 3 . . . . . 52 . Explosive 40 | . 3 . 36 1 . . . . Electromagnetic 11 | . . . . . . . . 11 Robot Hit Streak 9 | . 2 . 9 . . . 5 3 Robot Miss Streak 9 | . 3 . 2 1 . . 9 1 Penetration Max . | . . . . . . . . . Secondary Targets 1 | . . . . . . . 1 . Max Gunslinging Chain 1 | . . . . . . . 1 . Shots Hit Robots 58 | . 3 . 22 . . . 26 7 Core Hits 50 | . 4 . 25 4 . 1 12 4 Critical Kills . | . . . . . . . . . Critical Parts Destroyed . | . . . . . . . . . Critical Strikes . | . . . . . . . . . Melee Attacks . | . . . . . . . . . Impact . | . . . . . . . . . Slashing . | . . . . . . . . . Piercing . | . . . . . . . . . Sneak Attacks . | . . . . . . . . . Combat Hostiles . | . . . . . . . . . Follow-up Attacks . | . . . . . . . . . Damage Inflicted 2421 | . 135 . 1390 123 . 12 609 152 Guns 708 | . 28 . . . . . 529 151 Cannons . | . . . . . . . . . Explosions 1596 | . 104 . 1370 122 . . . . Melee . | . . . . . . . . . Ramming 117 | . 3 . 20 1 . 12 80 1 Kinetic 28 | . 28 . . . . . . . Thermal 605 | . . . . 76 . . 529 . Explosive 1520 | . 104 . 1370 46 . . . . Electromagnetic 151 | . . . . . . . . 151 Impact . | . . . . . . . . . Slashing . | . . . . . . . . . Piercing . | . . . . . . . . . Highest Corruption 5 | . 1 1 . . . . 1 5 Average Corruption 2 | . 1 1 . . . . 1 3 Corruption Purged . | . . . . . . . . . Corruption Blocked . | . . . . . . . . . Effects 15 | . 1 2 . . . . . 12 Message Errors 4 | . . 1 . . . . . 3 Matter Fused 3 | . 1 1 . . . . . 1 Energy Discharges 3 | . . . . . . . . 3 Parts Fused 1 | . . . . . . . . 1 Data Loss (minor) 2 | . . . . . . . . 2 Data Loss (major) 1 | . . . . . . . . 1 Alerts 1 | . . . . . . . . 1 Overload Shots . | . . . . . . . . . Overflow Damage 14 | . . . 14 . . . . . Projectiles . | . . . . . . . . . Explosions 14 | . . . 14 . . . . . Melee . | . . . . . . . . . Knockbacks . | . . . . . . . . . Impact . | . . . . . . . . . Kinetic . | . . . . . . . . . Secondary . | . . . . . . . . . Self-Inflicted Damage 117 | . . . 90 27 . . . . Shots 8 | . . . 6 2 . . . . Rammed 5 | . . . 1 4 . . . . Targets Rammed 22 | . 2 . 3 4 . 2 10 1 Kicked 17 | . 2 . 2 . . 2 10 1 Crushed . | . . . . . . . . . Highest Temperature 109 | . 30 . 60 16 . . 109 17 Average Temperature 28 | . 14 . 25 11 . . 34 9 Received Heat Transfer 289 | . 6 . 168 21 . . 12 82 Siege Activations . | . . . . . . . . . Robots Corrupted . | . . . . . . . . . Combat Hostiles . | . . . . . . . . . Parts Fried 3 | . . . . . . . . 3 Impact Corruptions . | . . . . . . . . . Robots Melted . | . . . . . . . . . Combat Hostiles . | . . . . . . . . . Parts Melted 1 | . . . . . . . 1 . Heat Transferred 1136 | . . . . 100 . . 1036 . Parts Sabotaged . | . . . . . . . . . Parts Stolen . | . . . . . . . . . Parts Stripped . | . . . . . . . . . Power Chain Reactions . | . . . . . . . . . Alert | -11 -10 -10 -9 -9 -9 -8 -8 -7 ------- Run | Yrd Mat Min Mat Min Exi Min Mat Fac Peak Influence 506 | . 56 1 489 506 . . 165 173 Initial 190 | . . 1 . 190 . . . 48 Average 127 | . 11 1 255 477 . . 57 74 Maximum Alert Level 2 | . . . 2 2 . . . . Low Security (%) 76 | 100 100 100 31 . . 100 100 100 Level 1 8 | . . . 37 . . . . . Level 2 15 | . . . 30 99 . . . . Level 3 . | . . . . . . . . . Level 4 . | . . . . . . . . . Level 5 . | . . . . . . . . . High Security . | . . . . . . . . . Max Security . | . . . . . . . . . Squads Dispatched 15 | . 2 . 3 . . . 4 6 Investigation 9 | . 1 . 2 . . . 4 2 Extermination 1 | . . . . . . . . 1 Reinforcement 2 | . 1 . 1 . . . . . Assault . | . . . . . . . . . Garrison 3 | . . . . . . . . 3 Intercept . | . . . . . . . . . Searches Triggered . | . . . . . . . . . Construction Impeded . | . . . . . . . . . Haulers Reinforced . | . . . . . . . . . Active Scanning Responses . | . . . . . . . . . Cargo Convoy Interrupts . | . . . . . . . . . Stealth | -11 -10 -10 -9 -9 -9 -8 -8 -7 --------- Run | Yrd Mat Min Mat Min Exi Min Mat Fac Distress Signals 4 | . 1 . 2 . . . 1 . Communications Jammed . | . . . . . . . . . Distress Signals . | . . . . . . . . . Times Spotted 98 | . 5 . 25 10 . 4 20 34 Peak Tracking Total 16 | . 6 . 7 4 . 4 8 16 Tactical Retreats 14 | . 2 . 3 1 . . . 8 Traps | -11 -10 -10 -9 -9 -9 -8 -8 -7 ------- Run | Yrd Mat Min Mat Min Exi Min Mat Fac Traps Triggered 8 | . 1 . 2 . . . 2 3 Indirectly . | . . . . . . . . . Trap Hack Attempts . | . . . . . . . . . Triggered . | . . . . . . . . . Disarmed . | . . . . . . . . . Reprogrammed . | . . . . . . . . . Reused . | . . . . . . . . . Traps Extracted . | . . . . . . . . . Installed . | . . . . . . . . . Triggered . | . . . . . . . . . Machines | -11 -10 -10 -9 -9 -9 -8 -8 -7 ---------- Run | Yrd Mat Min Mat Min Exi Min Mat Fac Machines Disabled 17 | . . . 6 11 . . . . Max in Single Turn 11 | . . . 2 11 . . . . Machines Repaired . | . . . . . . . . . Machines Dismantled . | . . . . . . . . . Machines Sabotaged . | . . . . . . . . . Overloaded Fab Kills . | . . . . . . . . . Hacking | -11 -10 -10 -9 -9 -9 -8 -8 -7 --------- Run | Yrd Mat Min Mat Min Exi Min Mat Fac Machines Accessed 21 | . 2 . 3 1 . . 12 3 Terminals 16 | . 2 . 3 . . . 10 1 Fabricators . | . . . . . . . . . Repair Stations . | . . . . . . . . . Recycling Units 3 | . . . . . . . 2 1 Scanalyzers . | . . . . . . . . . Garrison Access 1 | . . . . . . . . 1 Total Hacks 52 | . 6 . 7 1 . . 30 8 Successful 24 | . 2 . 5 1 . . 13 3 Failed 28 | . 4 . 2 . . . 17 5 Catastrophic 8 | . 1 . 1 . . . 3 3 Database Lockouts . | . . . . . . . . . Manual 1 | . . . . . 1 . . . Terminals 44 | . 6 . 7 . . . 27 4 Fabricators . | . . . . . . . . . Repair Stations . | . . . . . . . . . Recycling Units 5 | . . . . . . . 3 2 Scanalyzers . | . . . . . . . . . Garrison Access 2 | . . . . . . . . 2 Terminal Hacks 20 | . 2 . 5 1 . . 10 2 Record 4 | . 1 . 2 . . . 1 . Prototype ID Bank 3 | . 1 . . . . . 2 . Open Door 1 | . . . . 1 . . . . Branch Access Points 2 | . . . 1 . . . 1 . Emergency Access Points 2 | . . . . . . . 2 . Unreport Threat 3 | . . . . . . . 1 2 Locate Traps 1 | . . . . . . . 1 . Zone Layout 4 | . . . 2 . . . 2 . Fabricator Hacks . | . . . . . . . . . Repair Station Hacks . | . . . . . . . . . Recycling Unit Hacks 4 | . . . . . . . 3 1 Report Inventory 3 | . . . . . . . 2 1 Retrieve Components 1 | . . . . . . . 1 . Scanalyzer . | . . . . . . . . . Garrison Access Hacks . | . . . . . . . . . Unauthorized Hacks . | . . . . . . . . . Terminals . | . . . . . . . . . Fabricators . | . . . . . . . . . Repair Stations . | . . . . . . . . . Recycling Units . | . . . . . . . . . Scanalyzers . | . . . . . . . . . Garrison Access . | . . . . . . . . . Data Cores Recovered 1 | . . . 1 . . . . . Used 1 | . . . 1 . . . . . Hacking Detections 13 | . 2 . 3 . . . 6 2 Full Trace Events 8 | . 1 . 1 . . . 4 2 Feedback Events 2 | . . . . . . . 1 1 Corruption 2 | . . . . . . . 1 1 Feedback Blocked . | . . . . . . . . . Robot Schematics Acquired . | . . . . . . . . . Robots Built . | . . . . . . . . . Authchips . | . . . . . . . . . Time . | . . . . . . . . . Total Robot Build Rating . | . . . . . . . . . Part Schematics Acquired . | . . . . . . . . . Parts Built . | . . . . . . . . . Authchips . | . . . . . . . . . Time . | . . . . . . . . . Total Part Build Rating . | . . . . . . . . . Parts Repaired . | . . . . . . . . . Time . | . . . . . . . . . Parts Recycled . | . . . . . . . . . Recycled Matter . | . . . . . . . . . Retrieved Matter . | . . . . . . . . . Retrieved Components 3 | . . . . . . . 3 . Parts Scanalyzed . | . . . . . . . . . Part Schematics Acquired . | . . . . . . . . . Parts Damaged . | . . . . . . . . . Bothacking | -11 -10 -10 -9 -9 -9 -8 -8 -7 ------------ Run | Yrd Mat Min Mat Min Exi Min Mat Fac Used RIF Installer . | . . . . . . . . . Robots Hacked . | . . . . . . . . . Non-combat . | . . . . . . . . . Combat . | . . . . . . . . . Robot Hacks Applied . | . . . . . . . . . Relay Couplers Released . | . . . . . . . . . Fabnet Peak Effective % . | . . . . . . . . . Robots Rewired . | . . . . . . . . . Allies Hacked . | . . . . . . . . . Hacks Repelled . | . . . . . . . . . Allies | -11 -10 -10 -9 -9 -9 -8 -8 -7 -------- Run | Yrd Mat Min Mat Min Exi Min Mat Fac Total Allies 3 | . . 1 . 2 . . . . Largest Group 2 | . . 1 1 2 . . . . Highest-Rated Group 45 | . . 31 31 45 . . . . Highest-Rated Ally 31 | . . 31 31 31 . . . . Total Orders . | . . . . . . . . . Ally Attacks 18 | . . . 4 14 . . . . Total Damage 276 | . . . 85 191 . . . . Kills 4 | . . . 1 3 . . . . Allies Corrupted . | . . . . . . . . . Allies Melted . | . . . . . . . . . Intel | -11 -10 -10 -9 -9 -9 -8 -8 -7 ------- Run | Yrd Mat Min Mat Min Exi Min Mat Fac Robot Analysis Total . | . . . . . . . . . Derelict Logs Recovered 2 | . . . . 2 . . . . Drone Launches . | . . . . . . . . . Drone Recoveries . | . . . . . . . . . Exploration | -11 -10 -10 -9 -9 -9 -8 -8 -7 ------------- Run | Yrd Mat Min Mat Min Exi Min Mat Fac Turns Passed 3094 | 54 465 168 635 243 260 52 740 477 Spaces Moved 2658 | 43 357 132 392 272 259 44 660 499 Core 57 | 14 . . 4 . . . . 39 Treads . | . . . . . . . . . Legs 1984 | 29 357 132 170 . 132 44 660 460 Wheels . | . . . . . . . . . Hover . | . . . . . . . . . Flight 617 | . . . 218 272 127 . . . Fastest Speed 34 | 50 120 120 34 34 90 45 60 45 Average Speed 102 | 97 120 120 139 83 96 63 90 86 Slowest Speed 450 | 120 120 120 450 104 104 90 105 150 Overloaded Moves 336 | . . . . . . 26 122 188 Propulsion Burnouts . | . . . . . . . . . Robots Hopped 1 | . . . 1 . . . . . Cave-ins Triggered . | . . . . . . . . . Exploration Rate (%) 42 | 3 60 46 45 65 60 18 61 23 Regions Visited 8 Branch Regions 4 Pre-discovered Areas . | . . . . . . . . . Known Exits Taken 1 | . . . 1 . . . . . Unknown Exits Taken 7 | 1 1 1 . 1 1 1 1 . Scrap Searched 2 | . . 1 . 1 . . . . Spaces Dug . | . . . . . . . . . Terrain Destroyed 201 | . 19 . 156 26 . . . . Melee . | . . . . . . . . . Projectile . | . . . . . . . . . AOE 201 | . 19 . 156 26 . . . . Terrain Rammed . | . . . . . . . . . Walls Destroyed . | . . . . . . . . . Machines Disabled . | . . . . . . . . . Actions | -11 -10 -10 -9 -9 -9 -8 -8 -7 --------- Run | Yrd Mat Min Mat Min Exi Min Mat Fac Total 2933 | 55 384 142 444 285 270 67 751 535 Wait 52 | . 4 5 1 . . 22 14 6 Move 2648 | 42 356 131 389 271 258 43 659 499 Hop 1 | . . . 1 . . . . . Pick Up 54 | 7 8 3 10 3 4 . 11 8 Fast Attach 10 | . . . . . . . 9 1 Attach 34 | 6 1 . 8 2 2 . 7 8 Detach 2 | . . . . . 1 . 1 . Swap 8 | . 2 1 . 3 1 . . 1 Drop 40 | . 5 2 9 1 4 . 14 5 Fire 62 | . 6 . 23 1 . . 26 6 Melee . | . . . . . . . . . Ram 5 | . . . 1 4 . . . . Kick 17 | . 2 . 2 . . 2 10 1 Crush . | . . . . . . . . . Escape Stasis . | . . . . . . . . . Rewire . | . . . . . . . . . Trap . | . . . . . . . . . Miscellaneous . | . . . . . . . . . Route ------- -11/Scrapyard -10/Materials (discovered 2 exits: *Mat / [*Min]) -10/Mines -9/Materials (discovered 2 exits: *Min x2) -9/Mines (discovered 2 exits: *Mat / *Exi) -9/Exiles -8/Mines -8/Materials -7/Factory History --------- Turn | Location | Event 11 | -11/Scrapyard | Discovered new exit (range 15) 55 | -11/Scrapyard | Entered Materials 317 | -10/Materials | Build established: Mutant 439 | -10/Materials | Discovered new exit (range 16) 478 | -10/Materials | Discovered new exit (range 15) 520 | -10/Materials | Entered Mines 523 | -10/Mines | Received a Mining Laser from a helpful Derelict 654 | -10/Mines | Received a Rocket Launcher from a helpful Derelict 677 | -10/Mines | Discovered new exit (range 6) 688 | -10/Mines | Entered Materials 688 | -9/Materials | Accompanied by 1 ally 688 | -9/Materials | Evolved 2 slots: Propulsion x1, Utility x1 1246 | -9/Materials | Identified exit to Mines 1323 | -9/Materials | Entered Mines 1426 | -9/Mines | Learned Materials emergency access door positions 1427 | -9/Mines | Discovered new exit (range 5) 1443 | -9/Mines | Learned Materials emergency access door positions 1445 | -9/Mines | Met a Derelict who couldn't figure out how to use a Trap Extractor 1561 | -9/Mines | Deemed a non-threat by the Exiles lab entrance 1561 | -9/Mines | Discovered new exit (range 5) 1566 | -9/Mines | Entered Exiles 1592 | -9/Exiles | Met 8R-AWN 1612 | -9/Exiles | Met EX-HEX 1641 | -9/Exiles | Met EX-BIN 1658 | -9/Exiles | Aligned with FarCom system 1659 | -9/Exiles | Given EX-Vault access code 1684 | -9/Exiles | Opened EX-Vault 1690 | -9/Exiles | Found Prototype Processor 1692 | -9/Exiles | Identified 0b10 Alert Chip 1701 | -9/Exiles | Found Prototype Leg 1703 | -9/Exiles | Identified Potential Leg 1705 | -9/Exiles | Found Potential Leg 1726 | -9/Exiles | Warned to stay clear of 0b10 Research branches 1750 | -9/Exiles | Met EX-DEC 1815 | -9/Exiles | Discovered new exit (range 14) 1826 | -9/Exiles | Left Exiles lab with Potential Leg 1826 | -9/Exiles | Entered Mines 1873 | -8/Mines | Discovered new exit (range 10) 1878 | -8/Mines | Entered Materials 1878 | -8/Materials | Evolved 2 slots: Propulsion x1, Utility x1 2444 | -8/Materials | Build established: Skirmisher 2609 | -8/Materials | Discovered new exit (range 15) 2618 | -8/Materials | Entered Factory 2618 | -7/Factory | Evolved 2 slots: Utility x2 2835 | -7/Factory | Garrison activated, responded to threat 2916 | -7/Factory | Build established: Hacker-Mutant 3031 | -7/Factory | Core integrity fell below 50% 3035 | -7/Factory | Lost 10 parts (1p3n4u2w) 3061 | -7/Factory | Core integrity fell below 20% 3095 | -7/Factory | Destroyed by S-27 Virus with Autogun Last Messages --------------- 03020_ K-01 Serf destroyed. 03021_ K-01 Serf collects debris. 03022_ S-27 Virus destroyed. 03024_ K-01 Serf collects debris. 03036_ Connecting with Terminal... >>Alert(Purge) Purged threat record, alert level lowered. >>Alert(Purge) No threats on record. 03036_ ALERT: Suspicious activity at Terminal F012. Dispatching Investigation squad. 03044_ Potential Leg destroyed. 03052_ System corrupted: IFF burst signal emitted. 03063_ R-06 Scavenger destroyed. 03065_ R-06 Scavenger collects Com. Wheel. 03065_ K-01 Serf collects debris. 03065_ S-27 Virus destroyed. 03066_ System Shield destroyed. 03066_ R-06 Scavenger destroyed. 03093_ Carbon-fiber Leg destroyed. Map ----- +----------------------------------------------------+ | % *%!%= #???????????? | | * = = #???????????? | | ###########+############/#######+#?????????????? | | ????????? ?????# #????????????????????? | | ??????? ???# #????????????????????? | | ??????# ?#! #????????????????????? | | ??????# ## ! #????????????????????? | | ???????# ## #????????????????????? | | ???????# """" ## #????????????????????? | | ???????# """" ## s #????????????????????? | | ???????# """" ##] #????????????????????? | | ???????# """" ## = #????????????????????? | | ???????# ????? ## #????????????????????? | | ???????#?????? "T"" ## s #????????????????????? | | ?????????????? """" ## s #????????????????????? | | ??????????????##????## p #????????????????????? | | ?????????????????????###s####????????????????????? | | ???????????????????????# #???????????????????????? | | ???????????????????????#s#???????????????????????? | | ???????????????????????#s#???????????????????????? | | ????????????????????#### ####????????????????????? | | ?????????????####+### #????????????????????? | | ?????????? ############?????????? | | ?????????? ^ "" ????????? | | ?????????? T ????????? | | ?????????? @ ????????? | | ?????????? = ############?????????? | | ??????????? # T###### #????????????????????? | | ????????????##??????#########????????????????????? | | ?????????????????????????????????????????????????? | | ?????????????????????????????????????????????????? | | ?????????????????????????????????????????????????? | | ?????????????????????????????????????????????????? | | ?????????????????????????????????????????????????? | | ?????????????????????????????????????????????????? | | ?????????????????????????????????????????????????? | | ?????????????????????????????????????????????????? | | ?????????????????????????????????????????????????? | | ?????????????????????????????????????????????????? | | ?????????????????????????????????????????????????? | | ?????????????????????????????????????????????????? | | ?????????????????????????????????????????????????? | | ?????????????????????????????????????????????????? | | ?????????????????????????????????????????????????? | | ?????????????????????????????????????????????????? | | | | | | | | | | | +----------------------------------------------------+ Best States ------------- Heat Dissipation 48 Coolant Potential 50 Energy Generation 16 Energy Capacity 290 Matter Stores 300 Matter Capacity 300 Sight Range 16 Terrain Scan Range 16 Terrain Scan Density 10 ECM Strength 1 Jamming Range 12 Armor Coverage 225 Evasion (%) 66 Targeting Accuracy 6 Offensive Hacking 10 Defensive Hacking 10 Item Schematics ----------------- None Robot Schematics ------------------ None Fabricated ------------ Nothing Alien Tech Used ----------------- None Achievements -------------- Dynamic Key It Was An Accident, I Swear Challenges ------------ None Game ------ Seed BladeAntimatterJammer Manual? 0 Play Time 00:46:07 Cumulative 10.9 hours Start 2024.04.01 @ 23:28:13 End 2024.04.02 @ 00:12:12 Sessions 1 Manual Loads 0 Difficulty Rogue Special Mode None Game No. 27 Rogue 24 Adventurer 3 Explorer 0 Win Type - Total 0 Types 0/0/0/0/0/0/0/0/0 Lore% 18 Gallery% 20 Achievement% 23 Wizard Run 0 Options --------- Layout 1 ASCII 0 Keyboard 0 Movement Mouse Keybinds 0 Fullscreen 1 Font 32/SmallcapsGlow Map View 77x35 Zoom Use 0% Tactical HUD 1 Map Filters NONE Filters NONE Steam 1 RUN: 37f43e4a-85d3-47cb-af94-de8ee57e5588